bitfinex-derivatives/quotes_BTCF0:USTF0_20250325
["timestamp","ask_amount","ask_price","bid_price","bid_amount"]
[1742933946717,0.81548931,88318.0,88317.0,0.24068]
[1742933947919,0.64588931,88318.0,88317.0,0.24068]
[1742933948116,0.64588931,88318.0,88317.0,0.40398]
[1742933950527,0.64588931,88318.0,88317.0,0.5171835]
[1742933950731,0.64543641,88318.0,88317.0,0.5171835]
[1742933951231,0.64543641,88318.0,88317.0,0.40398]
[1742933951526,0.64543641,88318.0,88317.0,0.41833079]
[1742933951728,0.64543641,88318.0,88317.0,0.25463079]
[1742933952618,0.64543641,88318.0,88317.0,0.42613079]
[1742933953319,0.64543641,88318.0,88317.0,0.42573079]
[1742933953514,0.64543641,88318.0,88317.0,0.25423079]
[1742933954421,0.64543641,88318.0,88317.0,0.43243079]
[1742933955123,0.82183641,88318.0,88317.0,0.41808]
[1742933955327,0.82183641,88318.0,88317.0,0.23988]
[1742933955529,0.82183641,88318.0,88317.0,0.41808]
[1742933955734,0.82138351,88318.0,88317.0,0.41808]
[1742933956125,0.82138351,88318.0,88317.0,0.43247008]
[1742933956522,0.64498351,88318.0,88317.0,0.43247008]
[1742933956729,0.82138351,88318.0,88317.0,0.01507008]
[1742933957043,0.82138351,88318.0,88317.0,0.01439008]
[1742933957236,0.82138351,88318.0,88317.0,0.01559008]
[1742933957421,0.82138351,88318.0,88317.0,1e-07]
[1742933957729,0.1132163,88307.0,88306.0,0.0209616]
[1742933958031,0.11477631,88307.0,88306.0,0.2854766]
[1742933958226,0.4592163,88307.0,88306.0,0.2854766]
[1742933958427,0.46077631,88307.0,88306.0,0.2854766]
[1742933958630,0.46077631,88307.0,88306.0,0.4598766]
[1742933960931,0.46077631,88307.0,88306.0,0.2854766]
[1742933961430,0.46077631,88307.0,88306.0,0.28550821]
[1742933961627,0.46077631,88307.0,88306.0,0.26462661]
[1742933961831,0.62567631,88307.0,88306.0,0.26462661]
[1742933962034,0.62567631,88307.0,88306.0,0.26454661]
[1742933963338,0.62567631,88307.0,88300.0,9e-08]
[1742933963339,0.113224,88301.0,88300.0,9e-08]
[1742933963637,0.47566401,88301.0,88300.0,9e-08]
[1742933963838,0.82146401,88301.0,88300.0,9e-08]
[1742933965032,0.28286401,88301.0,88300.0,0.37322539]
[1742933965337,0.28686401,88301.0,88300.0,0.26]
[1742933965732,0.28686401,88301.0,88300.0,0.2839074]
[1742933966741,0.11886401,88301.0,88300.0,0.2839074]
[1742933967326,0.11886401,88301.0,88300.0,0.3971327]
[1742933967538,0.11841103,88301.0,88300.0,0.7579327]
[1742933967735,0.11841103,88301.0,88300.0,0.7346253]
[1742933967936,0.11841103,88301.0,88300.0,1.0818253]
[1742933968133,0.00518703,88301.0,88300.0,1.0818253]
[1742933968341,0.20265433,88307.0,88306.0,0.1132176]
[1742933968539,0.20265433,88307.0,88306.0,0.3632176]
[1742933968727,0.31695064,88307.0,88306.0,0.8255976]
[1742933969042,0.31695064,88307.0,88306.0,0.8261976]
[1742933969240,0.20373434,88307.0,88306.0,0.8261976]
[1742933969431,0.31695064,88307.0,88306.0,0.8261976]
[1742933970033,0.31695064,88307.0,88306.0,0.8257976]
[1742933970526,0.48875064,88307.0,88306.0,0.8257976]
[1742933970935,0.20373434,88307.0,88306.0,0.8257976]
[1742933971141,0.16903112,88307.0,88306.0,0.8257976]
[1742933971327,0.003,88307.0,88306.0,0.87109379]
[1742933971528,0.00016985,88320.0,88319.0,0.113201]
[1742933971844,0.00124986,88320.0,88319.0,0.827881]
[1742933972054,0.11444976,88320.0,88319.0,0.827881]
[1742933972342,0.11444976,88320.0,88319.0,1.175481]
[1742933972539,0.28284976,88320.0,88319.0,1.175481]
[1742933972932,0.28784976,88320.0,88319.0,1.1759339]
[1742933973937,0.28784976,88320.0,88319.0,1.0627329]
[1742933974144,0.28784976,88320.0,88319.0,0.6018529]
[1742933974441,0.29284976,88320.0,88319.0,0.7150539]
[1742933974832,0.29284976,88320.0,88319.0,0.2410529]
[1742933975835,0.29284976,88320.0,88319.0,0.2554995]
[1742933976230,0.29284976,88320.0,88319.0,0.3687005]
[1742933976734,0.29284976,88320.0,88319.0,0.5358005]
[1742933977335,0.29284976,88320.0,88319.0,0.4225995]
[1742933977535,0.29284976,88320.0,88319.0,0.2554995]
[1742933977736,0.29284976,88320.0,88319.0,0.3687005]
[1742933977935,0.29284976,88320.0,88319.0,0.2410529]
[1742933978847,0.29284976,88320.0,88319.0,0.25550721]
[1742933979346,0.29284976,88320.0,88319.0,0.36870821]
[1742933979736,0.29284976,88320.0,88319.0,0.88130821]
[1742933980241,0.29284956,88320.0,88319.0,0.88130821]
[1742933981043,0.17964986,88320.0,88319.0,0.88130821]
[1742933981539,0.29284956,88320.0,88319.0,0.88130821]
[1742933981734,0.13548414,88323.0,88322.0,0.1131971]
[1742933981934,0.13548414,88323.0,88322.0,0.94233141]
[1742933982138,0.13548414,88323.0,88322.0,1.28313141]
[1742933982139,0.09587037,88323.0,88322.0,1.28313141]
[1742933982546,0.20906617,88323.0,88322.0,1.28313141]
[1742933983546,0.21406617,88323.0,88322.0,1.2686771]
[1742933983747,0.0612566,88323.0,88322.0,1.28324075]
[1742933984146,0.1744524,88323.0,88322.0,1.28324075]
[1742933984342,0.1752124,88323.0,88322.0,1.07004365]
[1742933984551,0.5133124,88323.0,88322.0,1.07004365]
[1742933984746,0.5183124,88323.0,88322.0,1.07104365]
[1742933984943,0.4620558,88323.0,88322.0,1.07104365]
[1742933985748,0.4570558,88323.0,88322.0,1.07004365]
[1742933986052,0.4570558,88323.0,88322.0,1.18324075]
[1742933986755,0.4520558,88323.0,88322.0,1.07004365]
[1742933987056,0.4520558,88323.0,88322.0,0.89494365]
[1742933987449,0.4520558,88323.0,88322.0,0.89594365]
[1742933988040,0.4520558,88323.0,88322.0,1.00914075]
[1742933988249,0.4520558,88323.0,88322.0,0.89494365]
[1742933988455,0.4530558,88323.0,88322.0,0.89498839]
[1742933988852,0.00176,88323.0,88322.0,1.36898549]
[1742933989054,0.0004,88328.0,88327.0,0.1131907]
[1742933989250,0.0004,88328.0,88327.0,0.36853361]
[1742933989251,0.1143494,88328.0,88327.0,0.36853361]
[1742933989448,0.1143494,88328.0,88327.0,0.71503361]
[1742933989756,0.1143494,88328.0,88327.0,0.48177361]
[1742933990058,0.2899494,88328.0,88327.0,0.48177361]
[1742933990260,0.4623494,88328.0,88327.0,0.83887361]
[1742933990551,0.4633494,88328.0,88327.0,0.83887361]
[1742933991255,0.4633494,88328.0,88327.0,0.83863911]
[1742933991447,0.4633494,88328.0,88327.0,0.36834841]
[1742933992053,0.4633494,88328.0,88327.0,0.25510841]
[1742933992254,0.4643494,88328.0,88327.0,0.25510841]
[1742933992451,0.4643494,88328.0,88327.0,0.36829911]
[1742933993048,0.4643494,88328.0,88327.0,0.25520843]
[1742933993455,0.4643494,88328.0,88327.0,0.25521119]
[1742933995264,0.4643494,88328.0,88327.0,0.25525183]
[1742933997449,0.4643494,88328.0,88327.0,0.01457183]
[1742933997655,0.1131958,88323.0,88322.0,0.3608]
[1742933997865,0.11415581,88323.0,88322.0,0.5414]
[1742933998061,0.44415581,88323.0,88322.0,0.5414]
[1742934000764,0.44615581,88323.0,88322.0,0.5414]
[1742934001661,0.44815581,88323.0,88322.0,0.5414]
[1742934002756,0.44815581,88323.0,88322.0,0.1806]
[1742934004159,0.44615581,88323.0,88322.0,0.1806]
[1742934004360,0.44815581,88323.0,88322.0,0.1806]
[1742934004861,0.46732007,88323.0,88322.0,0.1806]
[1742934005467,0.46832007,88323.0,88322.0,0.1806]
[1742934005770,0.46632007,88323.0,88322.0,0.1806]
[1742934005973,0.46932007,88323.0,88322.0,0.1806]
[1742934009558,0.46932007,88323.0,88322.0,0.19518136]
[1742934015173,0.46932007,88323.0,88322.0,0.1806]
[1742934026671,0.0004,88328.0,88327.0,0.1131907]
[1742934026876,0.1135894,88328.0,88327.0,0.3638]
[1742934027181,0.13262587,88328.0,88327.0,0.2506]
[1742934027370,0.63502587,88328.0,88327.0,0.26511493]
[1742934027570,0.63570587,88328.0,88327.0,0.26511493]
[1742934028177,0.63870587,88328.0,88327.0,0.26511493]
[1742934028582,0.63570587,88328.0,88327.0,0.26511493]
[1742934028775,0.63870587,88328.0,88327.0,0.26511493]
[1742934029278,0.64270587,88328.0,88327.0,0.26511493]
[1742934029887,0.64170587,88328.0,88327.0,0.26511493]
[1742934031082,0.64170587,88328.0,88327.0,0.26527707]
[1742934031587,1.00250587,88328.0,88327.0,0.01467707]
[1742934031880,0.1131933,88325.0,88324.0,8e-05]
[1742934032092,0.1131958,88323.0,88322.0,0.20191932]
[1742934032287,0.1131958,88323.0,88322.0,0.29255932]
[1742934032582,0.1142758,88323.0,88322.0,0.29255932]
[1742934032782,0.4626758,88323.0,88322.0,0.29255932]
[1742934033579,0.4626758,88323.0,88322.0,0.09064]
[1742934033788,0.4626758,88323.0,88322.0,0.09]
[1742934033974,0.4646758,88323.0,88322.0,0.09]
[1742934034175,0.4666758,88323.0,88322.0,0.09]
[1742934035089,0.4646758,88323.0,88322.0,0.09]
[1742934035278,0.4666758,88323.0,88322.0,0.09]
[1742934042690,0.63609842,88323.0,88322.0,0.09]
[1742934043991,0.63609842,88323.0,88322.0,0.10472491]
[1742934044178,0.63609842,88323.0,88322.0,0.10472436]
[1742934045078,0.63609842,88323.0,88322.0,0.10532436]
[1742934046786,0.52169857,88323.0,88322.0,0.10532436]
[1742934047984,0.52169857,88323.0,88319.0,0.0004529]
[1742934047985,0.0566015,88318.0,88314.0,5e-08]
[1742934048176,0.1132151,88308.0,88304.0,0.24298597]
[1742934048375,0.45326,88317.0,88300.0,7e-08]
[1742934048376,0.1132202,88304.0,88300.0,7e-08]
[1742934048582,0.113224,88301.0,88300.0,7e-08]
[1742934048778,0.1132292,88297.0,88296.0,0.33411126]
[1742934049084,0.47558921,88297.0,88296.0,0.43411126]
[1742934049490,0.80038921,88297.0,88296.0,0.43411126]
[1742934049889,0.80038921,88297.0,88296.0,0.33371126]
[1742934050692,0.1132343,88293.0,88292.0,8e-05]
[1742934050993,0.11279431,88293.0,88292.0,8e-05]
[1742934051290,0.60669431,88293.0,88292.0,8e-05]
[1742934052291,0.62395643,88293.0,88292.0,0.00208]
[1742934052492,0.62350345,88293.0,88292.0,0.00208]
[1742934053493,0.62350345,88293.0,88292.0,0.00308]
[1742934054496,0.72508482,88293.0,88292.0,0.00308]
[1742934055087,0.56358482,88293.0,88292.0,0.00308]
[1742934055289,0.10314138,88293.0,88292.0,0.3563156]
[1742934055482,0.13544183,88297.0,88294.0,0.0566165]
[1742934055690,0.16930229,88302.0,88301.0,0.113224]
[1742934055896,0.16930229,88302.0,88301.0,0.477024]
[1742934055897,0.1705023,88302.0,88301.0,0.477024]
[1742934056094,0.28252499,88302.0,88301.0,0.641424]
[1742934056392,0.16930229,88302.0,88301.0,0.641424]
[1742934056988,0.17030229,88302.0,88301.0,0.641424]
[1742934057187,0.28352499,88302.0,88301.0,0.641424]
[1742934057383,0.28307201,88302.0,88301.0,0.641424]
[1742934057797,0.1142227,88302.0,88301.0,0.415]
[1742934057996,0.2765227,88302.0,88301.0,0.52916]
[1742934058607,0.2765227,88302.0,88301.0,0.54652064]
[1742934059097,0.2765227,88302.0,88301.0,0.54852064]
[1742934059895,0.2765227,88302.0,88301.0,0.54612064]
[1742934060101,0.4413227,88302.0,88301.0,0.56066752]
[1742934060993,0.4423227,88302.0,88301.0,0.55966752]
[1742934061996,0.4423227,88302.0,88301.0,0.67289152]
[1742934062304,0.44186972,88302.0,88301.0,0.55966752]
[1742934062805,0.44186972,88302.0,88301.0,0.67287292]
[1742934063399,0.27706972,88302.0,88301.0,0.67287292]
[1742934063602,0.27606972,88302.0,88301.0,0.67287292]
[1742934063789,0.27726973,88302.0,88301.0,0.67287292]
[1742934064792,0.27726973,88302.0,88301.0,0.67247292]
[1742934065001,0.44366973,88302.0,88301.0,0.67247292]
[1742934065406,0.00120001,88302.0,88301.0,0.67247292]
[1742934065704,0.1698329,88304.0,88303.0,0.1132215]
[1742934065904,0.00112001,88304.0,88303.0,0.38834978]
[1742934066505,0.1132202,88304.0,88303.0,0.33173898]
[1742934066703,0.1143802,88304.0,88303.0,0.33173898]
[1742934067398,0.1143802,88304.0,88303.0,0.33319196]
[1742934067599,0.1143802,88304.0,88303.0,0.33419196]
[1742934067798,0.00116,88304.0,88303.0,0.33419196]
[1742934068102,0.1132202,88304.0,88303.0,0.33419196]
[1742934068301,0.1143802,88304.0,88303.0,1.83419196]
[1742934068505,0.1132202,88304.0,88303.0,1.83419196]
[1742934069296,0.1132202,88304.0,88303.0,1.94735196]
[1742934070095,0.1132202,88304.0,88303.0,0.27758126]
[1742934070297,0.63834021,88304.0,88303.0,0.39074126]
[1742934070494,0.63834021,88304.0,88303.0,0.38974126]
[1742934071006,0.63834021,88304.0,88303.0,0.37521298]
[1742934071191,0.63834021,88304.0,88303.0,0.26205298]
[1742934071906,0.63934021,88304.0,88303.0,0.27646608]
[1742934072902,0.63934021,88304.0,88297.0,1.5566145]
[1742934072903,0.0566132,88300.0,88286.0,0.3608]
[1742934073104,0.113233,88294.0,88293.0,1.06272]
[1742934073398,0.114513,88294.0,88293.0,1.06272]
[1742934073603,0.113233,88294.0,88293.0,1.06272]
[1742934073802,0.447633,88294.0,88293.0,1.06272]
[1742934074110,0.448913,88294.0,88293.0,1.06572]
[1742934074299,0.448913,88294.0,88293.0,2.56572]
[1742934074499,0.447633,88294.0,88293.0,2.56572]
[1742934075607,0.447633,88294.0,88293.0,2.56372]
[1742934075798,0.447633,88294.0,88293.0,2.56572]
[1742934076199,0.46554875,88294.0,88293.0,2.56572]
[1742934076599,0.46554875,88294.0,88293.0,1.06572]
[1742934076801,0.46682875,88294.0,88293.0,1.06572]
[1742934077507,0.46682875,88294.0,88293.0,1.24652]
[1742934078395,0.46682875,88294.0,88293.0,1.06572]
[1742934081013,0.0004,88296.0,88295.0,0.1132317]
[1742934081210,0.0004,88296.0,88295.0,0.4970317]
[1742934081511,0.00016985,88305.0,88304.0,0.1132202]
[1742934081711,0.00016985,88305.0,88304.0,0.7046602]
[1742934081712,0.11434876,88305.0,88304.0,0.7046602]
[1742934081904,0.11434876,88305.0,88304.0,0.9824202]
[1742934082098,0.11434876,88305.0,88304.0,2.3692]
[1742934082297,0.11338875,88305.0,88304.0,2.3692]
[1742934083011,0.28078875,88305.0,88304.0,2.5514]
[1742934083509,0.28078875,88305.0,88304.0,2.6646202]
[1742934083904,0.28178875,88305.0,88304.0,2.6646202]
[1742934084311,0.28078875,88305.0,88304.0,2.6646202]
[1742934084609,0.28178875,88305.0,88304.0,2.6646202]
[1742934084911,0.28178875,88305.0,88304.0,2.67910782]
[1742934086009,0.056599,88322.0,88311.0,0.1132112]
[1742934086313,0.2863039,88317.0,88316.0,0.3608]
[1742934086504,0.2873039,88317.0,88316.0,0.48900762]
[1742934087314,0.2883039,88317.0,88316.0,0.48900762]
[1742934087913,0.2903039,88317.0,88316.0,0.48900762]
[1742934088110,0.289851,88317.0,88316.0,0.48900762]
[1742934088412,0.289851,88317.0,88316.0,0.62025345]
[1742934089115,0.291851,88317.0,88316.0,0.62025345]
[1742934089414,0.470651,88317.0,88316.0,0.62025345]
[1742934089608,0.470651,88317.0,88316.0,0.50704865]
[1742934089808,0.470651,88317.0,88316.0,0.50707378]
[1742934090814,0.470651,88317.0,88316.0,0.50667378]
[1742934091510,0.470651,88317.0,88316.0,0.37577817]
[1742934091914,0.3574471,88317.0,88306.0,0.11312]
[1742934092102,0.1132138,88309.0,88308.0,0.00076985]
[1742934092422,0.11429381,88309.0,88308.0,0.00016985]
[1742934092605,0.28769381,88309.0,88308.0,0.00016985]
[1742934093112,0.28769381,88309.0,88308.0,5e-08]
[1742934093300,0.28724091,88309.0,88308.0,5e-08]
[1742934095005,0.28924091,88309.0,88308.0,5e-08]
[1742934095816,0.57806091,88309.0,88308.0,5e-08]
[1742934098819,0.1132163,88307.0,88306.0,5e-08]
[1742934099018,0.1132202,88304.0,88298.0,0.00169872]
[1742934099320,0.1143802,88304.0,88298.0,0.00169872]
[1742934099627,0.4705802,88304.0,88299.0,0.1685]
[1742934099917,0.6403802,88304.0,88299.0,0.1685]
[1742934100308,0.65805203,88304.0,88299.0,0.1685]
[1742934100708,0.65905203,88304.0,88299.0,0.1685]
[1742934101303,0.65905203,88304.0,88299.0,0.3377]
[1742934101509,0.65905203,88304.0,88299.0,0.1685]
[1742934102319,0.66005203,88304.0,88299.0,0.1685]
[1742934104722,0.49025203,88304.0,88299.0,0.1685]
[1742934105822,0.49025203,88304.0,88294.0,0.1692]
[1742934106022,0.49025203,88304.0,88295.0,0.178]
[1742934110123,0.49025203,88304.0,88303.0,8e-08]
[1742934114221,1.21185203,88304.0,88303.0,8e-08]
[1742934115024,1.39375203,88304.0,88303.0,8e-08]
[1742934117422,0.113224,88301.0,88300.0,8e-08]
[1742934117631,0.11430401,88301.0,88300.0,8e-08]
[1742934117829,0.46160401,88301.0,88300.0,8e-08]
[1742934118838,0.1132292,88297.0,88296.0,8e-08]
[1742934119019,0.11430921,88297.0,88296.0,8e-08]
[1742934119222,0.1132343,88293.0,88292.0,0.1725]
[1742934119423,0.4740343,88293.0,88292.0,0.18723575]
[1742934119635,0.8201343,88293.0,88292.0,0.12193795]
[1742934119830,0.83766444,88293.0,88292.0,0.12261795]
[1742934120022,0.83530444,88293.0,88292.0,0.12193795]
[1742934120732,0.83530444,88293.0,88292.0,0.12198118]
[1742934121926,0.83530444,88293.0,88292.0,0.12298991]
[1742934122327,0.83530444,88293.0,88292.0,0.12498991]
[1742934122526,0.83530444,88293.0,88292.0,0.02473951]
[1742934122729,0.83530444,88293.0,88292.0,0.01778771]
[1742934124228,0.83530444,88293.0,88292.0,0.03223383]
[1742934125038,0.83658444,88293.0,88292.0,0.03283383]
[1742934125925,0.83658444,88293.0,88292.0,0.21403383]
[1742934127240,1.00588695,88293.0,88292.0,0.21403383]
[1742934129135,1.00588695,88293.0,88292.0,0.03283383]
[1742934129337,1.18518695,88293.0,88292.0,0.03283383]
[1742934130034,1.18518695,88293.0,88292.0,0.03223383]
[1742934130235,1.18518695,88293.0,88292.0,0.03283383]
[1742934130945,1.00588695,88293.0,88292.0,0.03283383]
[1742934132944,1.00588695,88293.0,88287.0,0.00045307]
[1742934132945,0.1132394,88289.0,88287.0,0.00045307]
[1742934133139,0.8302407,88288.0,88287.0,0.1125338]
[1742934133345,0.113242,88287.0,88286.0,7e-08]
[1742934133543,0.114682,88287.0,88286.0,7e-08]
[1742934133739,0.1132471,88283.0,88282.0,0.3583]
[1742934133944,0.1146871,88283.0,88282.0,0.38308237]
[1742934134138,0.4567871,88283.0,88282.0,0.38308237]
[1742934134735,0.4567871,88283.0,88282.0,0.3589]
[1742934135136,0.4567871,88283.0,88282.0,0.3629]
[1742934135335,0.4547871,88283.0,88282.0,0.3629]
[1742934135837,0.4547871,88283.0,88282.0,0.1823]
[1742934136037,0.4547871,88283.0,88282.0,0.1817]
[1742934136233,0.4547871,88283.0,88282.0,0.1823]
[1742934136440,0.4547871,88283.0,88282.0,0.3592]
[1742934136639,0.47073981,88283.0,88282.0,0.3592]
[1742934137348,0.47073981,88283.0,88282.0,0.5318]
[1742934138145,0.47028674,88283.0,88282.0,0.5318]
[1742934139546,0.60593476,88283.0,88282.0,0.5318]
[1742934139946,0.60593476,88283.0,88282.0,0.5298]
[1742934140540,0.60593476,88283.0,88282.0,0.5284]
[1742934141147,0.60593476,88283.0,88282.0,0.1789]
[1742934141351,0.60593476,88283.0,88282.0,0.3589]
[1742934141547,0.60593476,88283.0,88282.0,0.36034]
[1742934142052,0.60593476,88283.0,88282.0,0.52854]
[1742934143151,0.60548169,88283.0,88282.0,0.52854]
[1742934143550,0.46983367,88283.0,88282.0,0.52854]
[1742934144351,0.46958096,88283.0,88282.0,0.52854]
[1742934144661,0.1132392,88291.0,88290.0,0.1132347]
[1742934144848,0.1132369,88293.0,88292.0,0.1132343]
[1742934145051,0.1132369,88293.0,88292.0,1.92356582]
[1742934145246,0.1132369,88293.0,88292.0,1.92424582]
[1742934145440,0.2920369,88293.0,88292.0,1.92356582]
[1742934145646,0.11278392,88293.0,88292.0,1.92356582]
[1742934145842,0.11278392,88293.0,88292.0,2.03680142]
[1742934146045,0.0004,88296.0,88294.0,0.1132317]
[1742934146348,0.1132209,88304.0,88303.0,0.0566107]
[1742934146542,0.1132209,88304.0,88303.0,0.68234052]
[1742934146744,0.00016985,88305.0,88304.0,0.1132202]
[1742934146945,0.0566056,88311.0,88304.0,0.51421337]
[1742934147144,0.1132189,88305.0,88304.0,0.4187]
[1742934147350,0.1132189,88305.0,88304.0,0.57069367]
[1742934147749,0.1132189,88305.0,88304.0,0.4721304]
[1742934148057,0.1132189,88305.0,88304.0,0.5851704]
[1742934148352,0.1152189,88305.0,88304.0,0.5847704]
[1742934148952,0.1162189,88305.0,88304.0,0.4717304]
[1742934149149,0.1162189,88305.0,88304.0,0.5847704]
[1742934150455,0.1172189,88305.0,88304.0,0.5853704]
[1742934152557,0.1172189,88305.0,88304.0,0.4723304]
[1742934152857,0.1172189,88305.0,88304.0,0.5853304]
[1742934153855,0.1172189,88305.0,88304.0,0.44835891]
[1742934154059,0.1132202,88304.0,88303.0,9e-08]
[1742934154255,0.47386021,88304.0,88303.0,9e-08]
[1742934155151,0.47386021,88304.0,88303.0,0.00064009]
[1742934155359,0.47486021,88304.0,88303.0,0.00064009]
[1742934156046,0.47586021,88304.0,88303.0,0.00064009]
[1742934156356,0.47586021,88304.0,88303.0,0.17084009]
[1742934158355,0.47586021,88304.0,88303.0,0.19475826]
[1742934159257,0.47586021,88304.0,88303.0,0.2109638]
[1742934160756,0.00324001,88304.0,88303.0,0.5641853]
[1742934160957,0.002,88304.0,88303.0,0.70229678]
[1742934161152,0.1152202,88304.0,88303.0,0.76077528]
[1742934161357,0.1152202,88304.0,88303.0,2.26077528]
[1742934161559,0.4536202,88304.0,88303.0,0.73685711]
[1742934161758,0.45482021,88304.0,88303.0,0.73685711]
[1742934161958,0.45482021,88304.0,88303.0,0.71174563]
[1742934162366,0.4536202,88304.0,88303.0,0.71174563]
[1742934162758,0.45482021,88304.0,88303.0,0.59874563]
[1742934163057,0.45482021,88304.0,88303.0,0.62382502]
[1742934163366,0.45482021,88304.0,88303.0,0.62264466]
[1742934163563,0.45482021,88304.0,88303.0,0.6477258]
[1742934163970,0.45482021,88304.0,88303.0,0.64773678]
[1742934166269,0.45482021,88304.0,88303.0,0.67847058]
[1742934166871,0.45482021,88304.0,88303.0,0.67859466]
[1742934171167,0.45482021,88304.0,88303.0,0.6786768]
[1742934172062,0.45482021,88304.0,88303.0,0.7918983]
[1742934172464,0.45482021,88304.0,88303.0,0.67864703]
[1742934173464,0.45382021,88304.0,88303.0,0.67864703]
[1742934173663,0.42934531,88304.0,88303.0,0.67864703]
[1742934174067,0.42934531,88304.0,88303.0,0.79186853]
[1742934174267,0.42934531,88304.0,88303.0,0.7679695]
[1742934174468,0.3612,88312.0,88311.0,0.1132112]
[1742934174773,0.1144499,88312.0,88311.0,0.41962039]
[1742934174973,0.4637499,88312.0,88311.0,0.41962039]
[1742934175174,0.4637499,88312.0,88311.0,1.80666039]
[1742934175375,0.4637499,88312.0,88311.0,0.05666039]
[1742934175574,0.4667499,88312.0,88311.0,0.05606039]
[1742934175969,0.4667499,88312.0,88311.0,0.05694039]
[1742934176279,0.4697499,88312.0,88311.0,0.05694039]
[1742934180581,0.4697499,88312.0,88311.0,0.0568627]
[1742934180773,0.4697499,88312.0,88311.0,0.08084676]
[1742934182083,0.4697499,88312.0,88311.0,0.08096046]
[1742934182784,0.8305499,88312.0,88311.0,0.08096046]
[1742934183284,0.8305499,88312.0,88311.0,0.08084554]
[1742934183475,0.8305499,88312.0,88311.0,0.08084671]
[1742934184678,0.8305499,88312.0,88311.0,0.05686265]
[1742934186187,0.8305499,88312.0,88311.0,0.05672067]
[1742934187883,0.8305499,88312.0,88311.0,0.05584067]
[1742934188278,0.8305499,88312.0,88311.0,0.05570835]
[1742934190182,0.8305499,88312.0,88311.0,0.05490987]
[1742934192581,0.8305499,88312.0,88311.0,0.05558987]
[1742934195587,0.8305499,88312.0,88311.0,0.05490987]
[1742934195889,0.8297099,88312.0,88311.0,0.05490987]
[1742934196088,0.1132138,88309.0,88308.0,7e-08]
[1742934196284,0.1132189,88305.0,88304.0,0.17165414]
[1742934196487,0.1132189,88305.0,88303.0,9e-08]
[1742934196488,0.1132202,88304.0,88303.0,3e-08]
[1742934196686,0.1132292,88297.0,88296.0,2e-08]
[1742934196984,0.4740292,88297.0,88296.0,2e-08]
[1742934197384,0.1132369,88291.0,88290.0,2e-08]
[1742934197788,0.6297369,88291.0,88290.0,2e-08]
[1742934198291,0.1132394,88289.0,88288.0,0.26483756]
[1742934198588,0.13243122,88289.0,88288.0,0.20568576]
[1742934198789,0.47723122,88289.0,88288.0,0.20568576]
[1742934199176,0.47523122,88289.0,88288.0,0.20568576]
[1742934199386,0.47323122,88289.0,88288.0,0.20568576]
[1742934200485,0.47407122,88289.0,88288.0,0.20628576]
[1742934200694,0.47407122,88289.0,88288.0,0.20928576]
[1742934201192,0.47407122,88289.0,88288.0,0.0036]
[1742934201384,0.47407122,88289.0,88288.0,0.0056]
[1742934202185,0.4538794,88289.0,88288.0,0.1787]
[1742934202390,0.4538794,88289.0,88288.0,0.5403]
[1742934208084,0.4538794,88289.0,88288.0,0.55554297]
[1742934208589,0.4538794,88289.0,88288.0,0.57013486]
[1742934209592,0.4538794,88289.0,88288.0,0.55489189]
[1742934209797,0.1090794,88289.0,88288.0,1.15090404]
[1742934209992,0.1090794,88289.0,88288.0,0.81443964]
[1742934210296,0.1090794,88289.0,88288.0,2.29010404]
[1742934210492,0.4675794,88289.0,88288.0,2.28997948]
[1742934210798,0.4675794,88289.0,88288.0,2.67491745]
[1742934211301,0.4675794,88289.0,88288.0,1.17491745]
[1742934212388,0.4675794,88289.0,88288.0,1.15077948]
[1742934212991,0.4675794,88289.0,88288.0,1.24942829]
[1742934212992,0.4667394,88289.0,88288.0,1.24942829]
[1742934213188,0.4667394,88289.0,88288.0,0.88862829]
[1742934213491,0.4676594,88289.0,88288.0,1.13618759]
[1742934213900,0.4667394,88289.0,88288.0,1.13618759]
[1742934214191,0.4667394,88289.0,88288.0,0.91618759]
[1742934214398,0.4676594,88289.0,88288.0,0.91618759]
[1742934214600,0.4667394,88289.0,88288.0,0.91618759]
[1742934215295,0.4667394,88289.0,88288.0,1.02906759]
[1742934216287,0.46761941,88289.0,88288.0,1.02906759]
[1742934216898,0.46761941,88289.0,88288.0,0.91618759]
[1742934217089,0.46761941,88289.0,88288.0,1.02906759]
[1742934218392,0.46761941,88289.0,88288.0,1.01398]
[1742934218595,0.46761941,88289.0,88288.0,1.02871181]
[1742934221505,0.46761941,88289.0,88288.0,0.49401181]
[1742934221700,0.46761941,88289.0,88288.0,0.67641181]
[1742934222405,0.46761941,88289.0,88288.0,0.38113181]
[1742934222703,0.46761941,88289.0,88288.0,0.381017]
[1742934224803,0.46761941,88289.0,88288.0,0.38104877]
[1742934224991,0.46761941,88289.0,88288.0,0.02024877]
[1742934225905,0.46761941,88289.0,88288.0,0.02031512]
[1742934226801,0.46761941,88289.0,88288.0,0.02029441]
[1742934227706,0.46761941,88289.0,88288.0,0.0056]
[1742934227894,0.46761941,88289.0,88288.0,0.02029685]
[1742934230898,0.46761941,88289.0,88288.0,0.20039685]
[1742934231809,0.46761941,88289.0,88288.0,0.2003967]
[1742934232104,0.46761941,88289.0,88288.0,1.7003967]
[1742934232705,0.46761941,88289.0,88288.0,0.20039853]
[1742934233505,0.46761941,88289.0,88288.0,0.37599853]
[1742934234111,0.46761941,88289.0,88288.0,0.64599853]
[1742934234412,0.00088001,88289.0,88288.0,2.62003923]
[1742934234722,0.24862136,88289.0,88288.0,2.67665953]
[1742934234895,0.24862136,88289.0,88288.0,2.82191653]
[1742934235100,0.24862136,88289.0,88288.0,2.72191653]
[1742934235304,0.24954136,88289.0,88288.0,2.72191653]
[1742934235504,0.24954136,88289.0,88288.0,2.67665953]
[1742934237199,0.42154136,88289.0,88288.0,2.67665953]
[1742934237697,0.59194136,88289.0,88288.0,2.67665953]
[1742934237898,0.59102136,88289.0,88288.0,2.67665953]
[1742934238098,0.59102136,88289.0,88288.0,2.77665953]
[1742934239112,0.59102136,88289.0,88288.0,2.67665953]
[1742934239410,0.59102136,88289.0,88288.0,1.17665953]
[1742934239709,0.59190137,88289.0,88288.0,1.17665953]
[1742934240108,0.59102136,88289.0,88288.0,1.27665953]
[1742934240503,0.4556394,88289.0,88288.0,1.27665953]
[1742934241113,0.4556394,88289.0,88288.0,1.17665953]
[1742934241607,0.4564794,88289.0,88288.0,1.17665953]
[1742934241809,0.4564794,88289.0,88288.0,1.161961]
[1742934242009,0.4556394,88289.0,88288.0,1.161961]
[1742934244113,0.4556394,88289.0,88288.0,1.261961]
[1742934248809,0.4556394,88289.0,88288.0,1.27641945]
[1742934249419,0.4556394,88289.0,88288.0,1.17641945]
[1742934250022,0.4556394,88289.0,88288.0,1.27641945]
[1742934250912,0.4556394,88289.0,88288.0,1.261961]
[1742934251112,0.4556394,88289.0,88288.0,1.161961]
[1742934252020,0.4556394,88289.0,88288.0,1.261961]
[1742934252320,0.4556394,88289.0,88288.0,1.161961]